bitfinex/quotes_BTCUSD_20250910
["timestamp","ask_amount","ask_price","bid_price","bid_amount"]
[1757467503434,0.00246509,111270.0,111260.0,0.37473522]
[1757467503640,0.00246509,111270.0,111260.0,0.61112346]
[1757467503893,0.00046509,111270.0,111260.0,0.61012346]
[1757467504239,0.00046509,111270.0,111260.0,0.76808883]
[1757467504499,0.00046509,111270.0,111260.0,0.83720883]
[1757467504837,0.00046509,111270.0,111260.0,0.96277183]
[1757467505249,0.00146509,111270.0,111260.0,0.61409711]
[1757467505698,0.00046509,111270.0,111260.0,0.84621359]
[1757467505904,0.00046509,111270.0,111260.0,0.96677183]
[1757467506105,0.00146509,111270.0,111260.0,0.96677183]
[1757467506373,0.00146509,111270.0,111260.0,0.62009711]
[1757467506495,0.00146509,111270.0,111260.0,0.85321359]
[1757467506700,0.00146509,111270.0,111260.0,0.55613925]
[1757467506904,0.00146509,111270.0,111260.0,0.82353749]
[1757467507109,0.00146509,111270.0,111260.0,0.70697925]
[1757467507314,0.00146509,111270.0,111260.0,0.82353749]
[1757467507730,0.00146509,111270.0,111260.0,0.94009573]
[1757467507930,0.00146509,111270.0,111260.0,1.01780031]
[1757467509526,0.00146509,111270.0,111260.0,0.31625668]
[1757467509527,0.00346509,111270.0,111260.0,0.31625668]
[1757467509742,0.00146509,111270.0,111260.0,0.61379366]
[1757467510112,0.00146509,111270.0,111260.0,0.58678492]
[1757467511583,0.00146509,111270.0,111260.0,0.25014668]
[1757467511821,0.00344509,111270.0,111260.0,0.38917192]
[1757467512015,0.00344509,111270.0,111260.0,0.39228192]
[1757467512142,0.00146509,111270.0,111260.0,0.39228192]
[1757467512637,0.00146509,111270.0,111260.0,0.50884016]
[1757467513993,0.00146509,111270.0,111260.0,0.38917192]
[1757467513994,0.00344509,111270.0,111260.0,0.38917192]
[1757467514190,0.00146509,111270.0,111260.0,0.50884016]
[1757467514419,0.00146509,111270.0,111260.0,0.59347393]
[1757467514713,0.00146509,111270.0,111260.0,0.47691569]
[1757467514938,0.00146509,111270.0,111260.0,0.59347393]
[1757467515169,0.74240404,111270.0,111260.0,0.0153]
[1757467515365,0.62916404,111270.0,111260.0,0.0153]
[1757467515786,0.65617816,111270.0,111260.0,0.0153]
[1757467516470,1.10841816,111270.0,111260.0,0.0083]
[1757467516644,1.10841816,111270.0,111260.0,0.0133]
[1757467516896,1.20133415,111270.0,111260.0,0.0133]
[1757467517109,1.20133415,111270.0,111260.0,0.005]
[1757467517510,0.17975912,111260.0,111250.0,0.0083]
[1757467517719,0.18277912,111260.0,111250.0,0.0083]
[1757467517928,0.18475912,111260.0,111250.0,0.0083]
[1757467519712,0.18475912,111260.0,111250.0,0.0103]
[1757467520539,0.18575912,111260.0,111250.0,0.0113]
[1757467520719,0.21277462,111260.0,111250.0,0.0113]
[1757467521907,0.41793061,111260.0,111250.0,0.003]
[1757467522111,0.75793061,111260.0,111250.0,0.003]
[1757467522503,0.76683153,111260.0,111250.0,0.003]
[1757467523126,0.85874752,111260.0,111250.0,0.0113]
[1757467523273,0.8498466,111260.0,111250.0,0.0113]
[1757467525067,0.8498466,111260.0,111250.0,0.003]
[1757467525068,0.75793061,111260.0,111250.0,0.003]
[1757467525199,0.76683159,111260.0,111250.0,0.003]
[1757467526479,0.77521427,111260.0,111250.0,0.001]
[1757467526721,0.77521427,111260.0,111250.0,0.002]
[1757467526931,0.92533427,111260.0,111250.0,0.001]
[1757467527135,0.76583159,111260.0,111250.0,0.001]
[1757467527347,0.76093061,111260.0,111250.0,0.001]
[1757467527558,0.79877061,111260.0,111250.0,0.001]
[1757467527784,0.79977061,111260.0,111250.0,0.001]
[1757467532298,0.91301061,111260.0,111250.0,0.001]
[1757467532528,1.0049266,111260.0,111250.0,0.001]
[1757467536621,0.8538466,111260.0,111250.0,0.001]
[1757467536831,0.99973061,111260.0,111250.0,0.001]
[1757467537263,0.99969061,111260.0,111250.0,0.001]
[1757467537477,0.99667061,111260.0,111250.0,0.00303]
[1757467538147,0.99969061,111260.0,111250.0,0.001]
[1757467539435,1.0916066,111260.0,111250.0,0.001]
[1757467539653,1.2048466,111260.0,111250.0,0.001]
[1757467539879,0.99969061,111260.0,111250.0,0.001]
[1757467540504,1.00808832,111260.0,111250.0,0.001]
[1757467540713,0.99969061,111260.0,111250.0,0.001]
[1757467540924,1.00808935,111260.0,111250.0,0.001]
[1757467541745,1.00506935,111260.0,111250.0,0.00621]
[1757467542208,0.99667061,111260.0,111250.0,0.00314]
[1757467542427,1.00802519,111260.0,111250.0,0.001]
[1757467542843,0.85407519,111260.0,111250.0,0.00314]
[1757467543070,0.84369061,111260.0,111250.0,0.19653247]
[1757467543286,0.0320155,111260.0,111250.0,0.36013154]
[1757467543494,0.0320155,111260.0,111250.0,0.47866154]
[1757467543715,0.3720155,111260.0,111250.0,0.47866154]
[1757467544133,0.0320155,111260.0,111250.0,0.47866154]
[1757467544395,0.0320155,111260.0,111250.0,0.53681409]
[1757467545228,0.0320155,111260.0,111250.0,0.48752607]
[1757467545438,0.004,111260.0,111250.0,0.48752607]
[1757467546274,0.67958556,111270.0,111250.0,0.48652607]
[1757467546486,0.003,111260.0,111250.0,0.48752607]
[1757467546700,0.003,111260.0,111250.0,0.48445607]
[1757467547121,0.003,111260.0,111250.0,0.48752607]
[1757467547381,0.67116941,111270.0,111260.0,0.17975912]
[1757467547592,0.67616941,111270.0,111260.0,0.18189912]
[1757467547796,0.67616941,111270.0,111260.0,0.18496912]
[1757467548005,0.67216941,111270.0,111260.0,0.18496912]
[1757467548220,0.49242509,111270.0,111260.0,0.36797991]
[1757467548428,0.15242509,111270.0,111260.0,0.43460843]
[1757467548633,0.15242509,111270.0,111260.0,0.36797991]
[1757467548851,0.15142509,111270.0,111260.0,0.36797991]
[1757467549255,0.33116805,111270.0,111260.0,0.36797991]
[1757467549916,0.33216805,111270.0,111260.0,0.36797991]
[1757467550143,0.33616805,111270.0,111260.0,0.36897991]
[1757467550762,0.33616805,111270.0,111260.0,0.19426912]
[1757467550970,0.33616805,111270.0,111260.0,0.36897991]
[1757467551591,0.33815805,111270.0,111260.0,0.01144]
[1757467552252,0.34110805,111270.0,111260.0,0.0093]
[1757467552474,0.4210023,111270.0,111260.0,0.0093]
[1757467553727,0.51291829,111270.0,111260.0,0.0093]
[1757467553970,0.97729829,111270.0,111260.0,0.0093]
[1757467555294,0.77302404,111270.0,111260.0,0.0093]
[1757467557019,0.77302404,111270.0,111260.0,0.001]
[1757467557239,0.77302404,111270.0,111260.0,0.0093]
[1757467559058,0.77302404,111270.0,111260.0,0.01144]
[1757467559380,0.77007404,111270.0,111260.0,0.01451]
[1757467560098,0.77007404,111270.0,111260.0,0.06451]
[1757467560299,0.77007404,111270.0,111260.0,0.06144]
[1757467560944,0.77302404,111270.0,111260.0,0.06144]
[1757467561160,0.77007404,111270.0,111260.0,0.06144]
[1757467561772,0.76987404,111270.0,111260.0,0.06675698]
[1757467562418,0.61712404,111270.0,111260.0,0.06675698]
[1757467562638,0.00546509,111270.0,111260.0,0.59593768]
[1757467562894,0.00546509,111270.0,111260.0,0.78979187]
[1757467563098,0.00546509,111270.0,111260.0,0.76584108]
[1757467563434,0.00546509,111270.0,111260.0,0.59113029]
[1757467563644,0.00546509,111270.0,111260.0,0.94055187]
[1757467564054,0.00146509,111270.0,111260.0,0.9487725]
[1757467564466,0.00046509,111270.0,111260.0,1.0134843]
[1757467564668,0.00146509,111270.0,111260.0,1.0144843]
[1757467564819,0.00146509,111270.0,111260.0,1.05593561]
[1757467567528,0.00146509,111270.0,111260.0,1.24205818]
[1757467568507,0.00146509,111270.0,111260.0,1.09129818]
[1757467568721,0.00146509,111270.0,111260.0,0.56189223]
[1757467568932,0.00146509,111270.0,111260.0,0.74490302]
[1757467570672,0.00146509,111270.0,111260.0,0.67582302]
[1757467573141,0.00146509,111270.0,111260.0,0.52514302]
[1757467573494,0.00146509,111270.0,111260.0,0.67578302]
[1757467574802,0.00146509,111270.0,111260.0,0.79012302]
[1757467575003,0.00146509,111270.0,111260.0,0.88491223]
[1757467575225,0.00146509,111270.0,111260.0,1.05962302]
[1757467575997,0.00146509,111270.0,111260.0,1.3262498]
[1757467577222,0.00146509,111270.0,111260.0,1.0612698]
[1757467577452,0.00146509,111270.0,111260.0,1.2119498]
[1757467577658,0.00146509,111270.0,111260.0,1.3262898]
[1757467579699,0.00146509,111270.0,111260.0,1.23437381]
[1757467582942,0.00146509,111270.0,111260.0,1.11169381]
[1757467583149,0.00146509,111270.0,111260.0,1.11999381]
[1757467583578,0.00146509,111270.0,111260.0,1.23433381]
[1757467586928,0.00146509,111270.0,111260.0,1.23425381]
[1757467587105,0.00146509,111270.0,111260.0,0.88483223]
[1757467587347,0.00146509,111270.0,111260.0,1.23425381]
[1757467588371,0.18617805,111270.0,111260.0,0.3955118]
[1757467588577,1.12533461,111270.0,111260.0,0.3308]
[1757467589032,1.19441461,111270.0,111260.0,0.053]
[1757467589246,1.20283527,111270.0,111260.0,0.053]
[1757467589889,1.22985092,111270.0,111260.0,0.053]
[1757467590493,1.22885092,111270.0,111260.0,0.05]
[1757467590711,1.22885092,111270.0,111260.0,0.051]
[1757467590932,1.2288453,111270.0,111260.0,0.051]
[1757467591273,1.2288453,111270.0,111260.0,0.05]
[1757467591700,1.2288453,111270.0,111260.0,0.051]
[1757467591908,1.38515487,111270.0,111260.0,0.051]
[1757467592112,1.38615487,111270.0,111260.0,0.052]
[1757467592328,1.38515555,111270.0,111260.0,0.051]
[1757467592526,1.3788453,111270.0,111260.0,0.051]
[1757467592750,1.3798453,111270.0,111260.0,0.052]
[1757467594049,1.38615051,111270.0,111260.0,1e-08]
[1757467594928,1.47495775,111270.0,111260.0,1e-08]
[1757467595625,0.37979144,111240.0,111230.0,0.05]
[1757467595856,0.67826549,111240.0,111230.0,0.05]
[1757467596072,0.68025549,111240.0,111230.0,0.05]
[1757467596517,0.68025549,111240.0,111230.0,0.05203]
[1757467596911,0.68323549,111240.0,111230.0,0.05203]
[1757467597130,0.68523549,111240.0,111230.0,0.05303]
[1757467597350,0.53463549,111240.0,111230.0,0.05303]
[1757467597558,0.68523549,111240.0,111230.0,0.05303]
[1757467597997,1.02623549,111240.0,111230.0,0.051]
[1757467598201,1.14636549,111240.0,111230.0,0.051]
[1757467598859,1.21544549,111240.0,111230.0,0.051]
[1757467599724,1.06484549,111240.0,111230.0,0.051]
[1757467599964,1.09527549,111240.0,111230.0,0.051]
[1757467600806,1.12230068,111240.0,111230.0,0.051]
[1757467600940,1.06634262,111240.0,111230.0,0.051]
[1757467602198,1.06650262,111240.0,111230.0,0.05297]
[1757467602366,1.06650262,111240.0,111230.0,0.051]
[1757467605016,1.06368262,111240.0,111230.0,0.05297]
[1757467605215,1.13624945,111240.0,111230.0,0.051]
[1757467607254,1.13624945,111240.0,111230.0,0.05297]
[1757467607676,1.13624945,111240.0,111230.0,0.051]
[1757467607882,1.24987945,111240.0,111230.0,0.051]
[1757467608733,1.26662262,111240.0,111230.0,0.051]
[1757467610387,1.50686138,111240.0,111230.0,0.051]
[1757467611354,1.35598138,111240.0,111230.0,0.051]
[1757467611784,1.50678138,111240.0,111230.0,0.051]
[1757467613850,1.35598138,111240.0,111230.0,0.051]
[1757467614277,1.46654262,111240.0,111230.0,0.051]
[1757467614851,1.46655903,111240.0,111230.0,0.051]
[1757467615061,1.5074811,111240.0,111230.0,0.051]
[1757467615260,1.51586447,111240.0,111230.0,0.051]
[1757467615474,1.5074811,111240.0,111230.0,0.051]
[1757467615673,1.5074811,111240.0,111230.0,0.05053222]
[1757467616064,1.5074811,111240.0,111230.0,0.05006694]
[1757467618487,1.53260768,111240.0,111230.0,0.05006694]
[1757467621491,1.53264768,111240.0,111230.0,0.05006694]
[1757467621694,1.3941711,111240.0,111230.0,0.05006694]
[1757467621898,1.2430511,111240.0,111230.0,0.05006694]
[1757467622109,1.3941711,111240.0,111230.0,0.05006694]
[1757467624429,1.41355507,111240.0,111230.0,0.05006694]
[1757467624635,1.41052507,111240.0,111230.0,0.05203694]
[1757467624845,1.21052507,111240.0,111230.0,0.05203694]
[1757467625266,1.21355507,111240.0,111230.0,0.05203694]
[1757467625637,1.21052507,111240.0,111230.0,0.05203694]
[1757467625826,1.20857507,111240.0,111230.0,0.05523694]
[1757467626032,1.21058507,111240.0,111230.0,0.05203694]
[1757467626273,1.21361507,111240.0,111230.0,0.05203694]
[1757467626758,1.21361507,111240.0,111230.0,0.05006694]
[1757467627196,1.05942507,111240.0,111230.0,0.05203694]
[1757467627465,0.66552652,111240.0,111230.0,0.05523694]
[1757467627677,0.74734969,111240.0,111230.0,0.05523694]
[1757467627882,1.08734969,111240.0,111230.0,0.05523694]
[1757467628360,0.54734969,111240.0,111230.0,0.17520694]
[1757467628595,0.74734969,111240.0,111230.0,0.17520694]
[1757467628814,0.88742396,111240.0,111230.0,0.17520694]
[1757467629054,1.08742396,111240.0,111230.0,0.17520694]
[1757467629526,0.88742396,111240.0,111230.0,0.17520694]
[1757467629731,1.17933995,111240.0,111230.0,0.17520694]
[1757467629905,0.97933995,111240.0,111230.0,0.17520694]
[1757467630109,1.02797995,111240.0,111230.0,0.17520694]
[1757467630331,1.08750396,111240.0,111230.0,0.17520694]
[1757467630749,1.01842396,111240.0,111230.0,0.17520694]
[1757467630953,0.67842396,111240.0,111230.0,0.4821469]
[1757467631159,0.65139877,111240.0,111230.0,0.47989931]
[1757467631364,0.65139877,111240.0,111230.0,0.36331454]
[1757467631598,0.74331476,111240.0,111230.0,0.18350694]
[1757467633223,0.73489727,111240.0,111230.0,0.18350694]
[1757467634893,0.73691727,111240.0,111230.0,0.05203694]
[1757467635549,1.08000727,111240.0,111230.0,0.05006694]
[1757467635670,1.08841649,111240.0,111230.0,0.05006694]
[1757467635881,1.08532649,111240.0,111230.0,0.05207694]
[1757467637561,1.11235056,111240.0,111230.0,0.05207694]
[1757467638221,1.18147056,111240.0,111230.0,0.05207694]
[1757467639563,1.17306134,111240.0,111230.0,0.05207694]
[1757467639794,1.17104134,111240.0,111230.0,0.05503694]
[1757467640023,1.17304278,111240.0,111230.0,0.05503694]
[1757467641355,1.17304278,111240.0,111230.0,0.05207694]
[1757467641557,1.17613278,111240.0,111230.0,0.05006694]
[1757467641770,1.30909949,111240.0,111230.0,0.05006694]
[1757467643733,1.30909901,111240.0,111230.0,0.05006694]
[1757467643906,1.13607302,111240.0,111230.0,0.05503694]
[1757467644112,1.08763302,111240.0,111230.0,0.05503694]
[1757467644352,1.08763302,111240.0,111230.0,0.17075694]
[1757467644853,1.05220272,111240.0,111230.0,0.35056454]
[1757467645052,0.87245128,111240.0,111230.0,0.35886454]
[1757467645193,1.05224272,111240.0,111230.0,0.35886454]
[1757467647196,1.14415871,111240.0,111230.0,0.17905694]
[1757467647398,1.12734342,111240.0,111230.0,0.18130453]
[1757467648808,1.12734342,111240.0,111230.0,0.17905694]
[1757467649154,1.12734342,111240.0,111230.0,0.06333694]
[1757467649948,0.88382743,111240.0,111230.0,0.06333694]
[1757467650143,1.03538743,111240.0,111230.0,0.36111213]
[1757467650352,1.03538743,111240.0,111230.0,0.35886454]
[1757467650548,0.85559599,111240.0,111230.0,0.35886454]
[1757467650753,0.85559599,111240.0,111230.0,0.47544931]
[1757467651195,1.03538743,111240.0,111230.0,0.47544931]
[1757467651372,1.12730342,111240.0,111230.0,0.47544931]
[1757467652166,0.96626743,111240.0,111230.0,0.47544931]
[1757467652547,0.96626743,111240.0,111230.0,0.35886454]
[1757467652747,0.96626743,111240.0,111230.0,0.17905694]
[1757467653005,0.96626743,111240.0,111230.0,0.4776969]
[1757467653201,0.96626743,111240.0,111230.0,0.35886454]
[1757467653595,0.96626743,111240.0,111230.0,0.17905694]
[1757467653871,1.05818342,111240.0,111230.0,0.18130453]
[1757467654088,1.05818342,111240.0,111230.0,0.06558453]
[1757467654716,1.05818342,111240.0,111230.0,0.06333694]
[1757467656720,1.06020342,111240.0,111230.0,0.06333694]
[1757467656932,1.05818342,111240.0,111230.0,0.06333694]
[1757467657256,1.06020342,111240.0,111230.0,0.06037694]
[1757467657481,1.06329342,111240.0,111230.0,0.06037694]
[1757467658833,1.06020342,111240.0,111230.0,0.06037694]
[1757467659461,0.96828743,111240.0,111230.0,0.06037694]
[1757467659713,0.96828743,111240.0,111230.0,0.06333694]
[1757467660916,0.98814001,111240.0,111230.0,0.05006694]
[1757467661123,1.11063001,111240.0,111230.0,0.05006694]
[1757467661319,1.11904564,111240.0,111230.0,0.05006694]
[1757467661703,1.23798621,111240.0,111230.0,0.05006694]
[1757467662589,1.27750526,111240.0,111230.0,0.05006694]
[1757467665624,1.46908963,111240.0,111230.0,0.05006694]
[1757467665941,1.49421621,111240.0,111230.0,0.05006694]
[1757467667103,1.53291621,111240.0,111230.0,0.04906694]
[1757467667546,1.53691621,111240.0,111230.0,0.05006694]
[1757467667752,1.56635866,111240.0,111230.0,1e-08]
[1757467667988,0.37983994,111210.0,111200.0,0.12061212]
[1757467668114,0.97776734,111210.0,111200.0,0.12061212]
[1757467668337,0.99960125,111210.0,111200.0,0.12061212]
[1757467668540,0.99960125,111210.0,111200.0,0.05]
[1757467669152,0.99960125,111210.0,111200.0,0.05012516]
[1757467669391,1.02663506,111210.0,111200.0,0.05012516]
[1757467669960,0.87483506,111210.0,111200.0,0.05012516]
[1757467670166,1.02663506,111210.0,111200.0,0.05012516]
[1757467670789,1.02763506,111210.0,111200.0,0.05112516]
[1757467671009,0.87583506,111210.0,111200.0,0.05112516]
[1757467671303,1.02763506,111210.0,111200.0,0.05315516]
[1757467671518,1.06782401,111210.0,111200.0,0.05315516]
[1757467671997,0.99158974,111210.0,111200.0,0.05639516]
[1757467672210,0.856571,111210.0,111200.0,0.05639516]
[1757467672430,0.99154974,111210.0,111200.0,0.05639516]
[1757467673194,0.99355974,111210.0,111200.0,0.05639516]
[1757467674081,0.99657974,111210.0,111200.0,0.05112516]
[1757467674305,1.10526545,111210.0,111200.0,0.05112516]
[1757467674763,1.22775545,111210.0,111200.0,0.05112516]
[1757467679342,1.26919411,111210.0,111200.0,0.05112516]
[1757467680888,1.26917397,111210.0,111200.0,0.05112516]
[1757467681301,1.11741397,111210.0,111200.0,0.05112516]
[1757467681659,1.01014932,111210.0,111200.0,0.05315516]
[1757467681863,1.01316932,111210.0,111200.0,0.05112516]
[1757467682207,1.13565932,111210.0,111200.0,0.05112516]
[1757467682421,1.1607859,111210.0,111200.0,0.05112516]
[1757467684400,0.71987229,111190.0,111180.0,0.07061212]
[1757467684655,1.04925786,111190.0,111180.0,0.07061212]
[1757467684909,0.51988846,111180.0,111170.0,76.16732997]
[1757467685127,0.76336445,111180.0,111170.0,76.16732997]
[1757467685862,0.76336445,111180.0,111170.0,76.16408997]
[1757467686068,0.82135989,111180.0,111170.0,76.16408997]
[1757467686304,0.8332205,111180.0,111170.0,76.16408997]
[1757467686599,0.8301605,111180.0,111170.0,76.16708997]
[1757467686852,0.6786405,111180.0,111170.0,76.16708997]
[1757467687111,0.8301605,111180.0,111170.0,76.16708997]
[1757467687608,0.8301603,111180.0,111170.0,76.16708997]
[1757467687838,1.1831803,111180.0,111170.0,76.16708997]
[1757467688069,1.1841803,111180.0,111170.0,76.16508997]
[1757467688297,1.1851803,111180.0,111170.0,76.16508997]
[1757467689664,1.0336603,111180.0,111170.0,76.16508997]
[1757467689862,1.1820803,111180.0,111170.0,76.16508997]
[1757467690525,1.21022688,111180.0,111170.0,76.16508997]
[1757467690743,1.33271688,111180.0,111170.0,76.16508997]
[1757467691165,1.37441688,111180.0,111170.0,76.16508997]
[1757467692080,1.46924688,111180.0,111170.0,76.16508997]
[1757467692339,1.37441688,111180.0,111170.0,76.16508997]
[1757467692820,1.16786889,111180.0,111170.0,76.16831997]
[1757467693051,1.16786889,111180.0,111170.0,76.28968997]
[1757467693463,1.16786889,111180.0,111170.0,76.16831997]
[1757467693935,1.16790889,111180.0,111170.0,76.16831997]
[1757467696026,1.16786889,111180.0,111170.0,76.16831997]
[1757467696200,1.10834488,111180.0,111170.0,76.16831997]
[1757467696434,1.25978488,111180.0,111170.0,76.16831997]
[1757467698501,1.07989642,111180.0,111170.0,76.16831997]
[1757467698698,1.25978488,111180.0,111170.0,76.16508997]
[1757467698895,1.26302172,111180.0,111170.0,76.16508997]
[1757467699472,1.25980172,111180.0,111170.0,76.16508997]
[1757467699692,1.26302172,111180.0,111170.0,76.16508997]
[1757467699892,1.2881483,111180.0,111170.0,76.16508997]
[1757467702437,1.3298483,111180.0,111170.0,76.16508997]
[1757467703059,1.4503683,111180.0,111170.0,76.16508997]
[1757467703293,1.5003683,111180.0,111170.0,76.16508997]
[1757467703508,1.51968156,111180.0,111170.0,76.16508997]
[1757467703924,1.71968156,111180.0,111170.0,76.16508997]
[1757467704351,1.76010385,111180.0,111170.0,76.16508997]
[1757467704563,1.78150653,111180.0,111170.0,76.16508997]
[1757467704969,1.78050653,111180.0,111170.0,76.16508997]
[1757467705178,1.75998385,111180.0,111170.0,76.16508997]
[1757467705377,1.63946385,111180.0,111170.0,76.16508997]
[1757467705779,1.25162786,111180.0,111170.0,76.16831997]
[1757467705994,1.2823146,111180.0,111170.0,76.16831997]
[1757467706345,1.1319946,111180.0,111170.0,76.16731997]
[1757467706552,1.0819946,111180.0,111170.0,76.16408997]
[1757467706814,1.21118802,111180.0,111170.0,76.16731997]
[1757467707490,1.21118802,111180.0,111170.0,76.28868997]
[1757467708165,1.21118802,111180.0,111170.0,76.16731997]
[1757467711414,1.23467609,111180.0,111170.0,76.16731997]
[1757467713074,1.25400904,111180.0,111170.0,76.16408997]
[1757467713323,1.25401634,111180.0,111170.0,76.16408997]
[1757467713540,1.37427891,111180.0,111170.0,76.16408997]
[1757467713928,1.37430632,111180.0,111170.0,76.16408997]
[1757467714167,1.53652632,111180.0,111170.0,76.16408997]
[1757467714770,1.557929,111180.0,111170.0,76.16408997]
[1757467716204,1.437409,111180.0,111170.0,76.16408997]
[1757467716669,1.41600632,111180.0,111170.0,76.16408997]
[1757467716819,1.437409,111180.0,111170.0,76.16408997]
[1757467718011,1.41600632,111180.0,111170.0,76.16408997]
[1757467718231,1.437409,111180.0,111170.0,76.16408997]
[1757467719899,1.653609,111180.0,111170.0,76.16408997]
[1757467720101,1.63220632,111180.0,111170.0,76.16408997]
[1757467721346,1.62898632,111180.0,111170.0,76.16408997]
[1757467721763,1.63219632,111180.0,111170.0,76.16408997]
[1757467722192,1.92342877,111180.0,111170.0,75.37811328]
[1757467722399,2.23881097,111180.0,111170.0,75.37341238]
[1757467722620,2.23881097,111180.0,111170.0,75.37300365]
[1757467722821,2.20936852,111180.0,111170.0,75.37259608]
[1757467723035,2.20936852,111180.0,111170.0,75.37218879]
[1757467723452,2.21406942,111180.0,111170.0,75.37178295]
[1757467723655,2.21406942,111180.0,111170.0,75.37137657]
[1757467724039,2.21406942,111180.0,111170.0,75.37097252]
[1757467724244,2.21406942,111180.0,111170.0,75.37056735]
[1757467724700,2.21406942,111180.0,111170.0,75.37016059]
[1757467724882,2.11106678,111180.0,111170.0,75.36975498]
[1757467725283,2.11106678,111180.0,111170.0,75.36935195]
[1757467725485,2.11106678,111180.0,111170.0,75.36894951]
[1757467725711,2.13246946,111180.0,111170.0,75.36854847]
[1757467726042,2.13246946,111180.0,111170.0,75.36814244]
[1757467726242,2.13246946,111180.0,111170.0,75.36774401]
[1757467726797,2.11106678,111180.0,111170.0,75.36694622]
[1757467727211,2.13246946,111180.0,111170.0,75.36654763]
[1757467727735,2.13246946,111180.0,111170.0,75.36575285]
[1757467728158,2.11106678,111180.0,111170.0,75.3653562]
[1757467728391,2.13246946,111180.0,111170.0,75.36496035]
[1757467728563,2.13246946,111180.0,111170.0,75.36456467]
[1757467728974,2.13246946,111180.0,111170.0,75.3641707]
[1757467729178,2.13246946,111180.0,111170.0,75.36377667]
[1757467729614,2.13246946,111180.0,111170.0,74.60154096]
[1757467729817,2.13246946,111180.0,111170.0,74.60114771]
[1757467730165,2.13246946,111180.0,111170.0,74.60075154]
[1757467730371,2.13246946,111180.0,111170.0,74.60035759]
[1757467730739,2.13246946,111180.0,111170.0,74.59996441]
[1757467731144,2.13246946,111180.0,111170.0,74.59957276]
[1757467731554,2.13246946,111180.0,111170.0,74.59918196]
[1757467731761,2.13246946,111180.0,111170.0,74.59879474]
[1757467732207,2.24949946,111180.0,111170.0,73.83519773]
[1757467732407,2.24949946,111180.0,111170.0,73.83480834]
[1757467732583,2.27894191,111180.0,111170.0,73.83442011]
[1757467733011,2.27894191,111180.0,111170.0,73.08538511]
[1757467733168,2.27894191,111180.0,111170.0,73.084997]
[1757467733581,2.27894191,111180.0,111170.0,73.08461151]
[1757467733786,2.27894191,111180.0,111170.0,73.08422524]
[1757467734149,2.27894191,111180.0,111170.0,73.08384067]
[1757467734354,2.27894191,111180.0,111170.0,73.08345649]
[1757467734750,2.27894191,111180.0,111170.0,73.08307562]
[1757467734956,2.27894191,111180.0,111170.0,73.08269243]
[1757467735412,2.27894191,111180.0,111170.0,72.3232334]
[1757467735615,2.27894191,111180.0,111170.0,72.32285231]
[1757467736021,2.27894191,111180.0,111170.0,72.3224669]
[1757467736222,2.27894191,111180.0,111170.0,72.32208317]
[1757467736579,2.27894191,111180.0,111170.0,72.32170056]
[1757467736778,2.27894191,111180.0,111170.0,72.32132036]
[1757467737237,2.27894191,111180.0,111170.0,72.32094107]
[1757467737433,2.16191191,111180.0,111170.0,72.32056149]
[1757467737813,2.16191191,111180.0,111170.0,72.32018088]
[1757467738034,2.16191191,111180.0,111170.0,71.50955735]
[1757467738234,2.27894191,111180.0,111170.0,71.5091783]
[1757467738701,1.76576191,111180.0,111170.0,71.51190885]
[1757467738892,1.76576191,111180.0,111170.0,71.62752885]
[1757467738893,1.44804685,111180.0,111170.0,71.62752885]
[1757467739123,1.1825244,111180.0,111170.0,71.62752885]
[1757467739344,1.1825244,111180.0,111170.0,71.62852885]
[1757467739744,1.1835644,111180.0,111170.0,71.62752885]
[1757467740016,0.99206211,111180.0,111170.0,71.62752885]
[1757467740212,1.11765404,111180.0,111170.0,71.62752885]
[1757467740629,1.11765404,111180.0,111170.0,71.71944484]
[1757467740630,0.75037404,111180.0,111170.0,71.71944484]
[1757467740807,0.34074407,111180.0,111170.0,71.92421957]
[1757467741073,0.46482415,111180.0,111170.0,71.75261492]
[1757467741282,0.64471261,111180.0,111170.0,71.62752885]
[1757467741490,0.98471261,111180.0,111170.0,71.62752885]
[1757467741946,1.0766286,111180.0,111170.0,71.62752885]
[1757467742081,1.0746286,111180.0,111170.0,71.62752885]
[1757467742486,1.0756286,111180.0,111170.0,71.63152885]
[1757467742889,1.14192993,111180.0,111170.0,71.63152885]
[1757467743097,1.18262993,111180.0,111170.0,71.51190885]
[1757467743292,1.18362993,111180.0,111170.0,71.51490885]
[1757467743682,1.18062993,111180.0,111170.0,71.51490885]
[1757467743885,1.17962993,111180.0,111170.0,71.51190885]
[1757467744238,1.18062993,111180.0,111170.0,71.51490885]
[1757467744596,1.17962993,111180.0,111170.0,71.51190885]
[1757467744818,1.188793,111180.0,111170.0,71.51190885]
[1757467745375,1.193793,111180.0,111170.0,71.51290885]
[1757467745716,1.194793,111180.0,111170.0,71.51290885]
[1757467746514,1.19477692,111180.0,111170.0,71.51290885]
[1757467749494,1.22182219,111180.0,111170.0,71.51290885]
[1757467749862,1.22182219,111180.0,111170.0,71.50979885]
[1757467750265,1.27182219,111180.0,111170.0,71.50979885]
[1757467751152,1.27182219,111180.0,111170.0,71.51278885]
[1757467751974,1.12070219,111180.0,111170.0,71.51278885]
[1757467752153,1.27174219,111180.0,111170.0,71.51278885]
[1757467752764,1.07174219,111180.0,111170.0,71.50979885]
[1757467753778,1.07174219,111180.0,111170.0,71.51278885]
[1757467754123,1.0717411,111180.0,111170.0,71.51278885]
[1757467755421,1.2717411,111180.0,111170.0,71.50979885]
[1757467755549,1.4717411,111180.0,111170.0,71.50979885]
[1757467755930,1.4748011,111180.0,111170.0,71.50979885]
[1757467756579,1.3237611,111180.0,111170.0,71.50979885]
[1757467756786,2.50767154,111180.0,111170.0,70.73861011]
[1757467756994,5.65656585,111180.0,111170.0,70.73861011]
[1757467757206,7.62686585,111180.0,111170.0,69.95069832]
[1757467757417,7.53494986,111180.0,111170.0,69.95069832]
[1757467757622,7.53494986,111180.0,111170.0,69.9413041]
[1757467757797,8.03494986,111180.0,111170.0,69.9413041]
[1757467758034,8.03494986,111180.0,111170.0,69.93191242]
[1757467758235,8.03494986,111180.0,111170.0,69.14741152]
[1757467758442,8.03494986,111180.0,111170.0,69.14703199]
[1757467758626,8.03394986,111180.0,111170.0,69.13764368]
[1757467759067,8.03598986,111180.0,111170.0,69.1292494]
[1757467759252,8.03598986,111180.0,111170.0,68.37955945]
[1757467759253,7.88498986,111180.0,111170.0,68.37955945]
[1757467759484,3.1510531,111180.0,111170.0,68.37054824]
[1757467759670,3.3000531,111180.0,111170.0,68.36917148]
[1757467759883,3.3000531,111180.0,111170.0,68.36879715]
[1757467759884,2.7500531,111180.0,111170.0,68.36879715]
[1757467760002,1.9638131,111180.0,111170.0,68.36741594]
[1757467760202,1.8731931,111180.0,111170.0,68.36741594]
[1757467760414,2.144894,111180.0,111170.0,68.36804315]
[1757467760610,1.993814,111180.0,111170.0,68.36766893]
[1757467760830,1.8821931,111180.0,111170.0,68.36766893]
[1757467761037,2.1238931,111180.0,111170.0,68.36729068]